Cogmind - Beta 10.2 @@@ ROGUE MODE // 2021.06.06 @ 20:12:58 Player: Plexion Result: Destroyed by H-55 Commando with Gauss Rifle Performance ------------- Evolutions (1) 500 Regions Visited (5) 1000 Robots Destroyed (38) 190 Value Destroyed (1020) 1020 Prototype IDs (26) 520 Alien Tech Used (0) 0 Bonus (282) 282 TOTAL SCORE: 3512 Bonus ------- Aligned with FarCom 300 Friendly Fire -18 Cogmind --------- Core Integrity 0/400 Matter 290/300 Energy 90/100 System Corruption 0% Temperature Cool (0) Movement Core (200) Ox3 Location -9/Exiles Parts ------- > --- POWER (1) -------- (None) > --- PROPULSION (2) --- (None) > --- UTILITY (4) ------ (None) > --- WEAPON (2) ------- Advanced Beam Cannon 8R-AWN's Boregun > --- INVENTORY (4) ---- Medium Storage Unit High-capacity Storage Unit Actuator Array Peak State ------------ > --- POWER ------------ Improved Ion Engine > --- PROPULSION ------- Light Treads Light Treads > --- UTILITY ---------- Large Storage Unit Large Storage Unit High-capacity Storage Unit Light Armor Plating > --- WEAPON ----------- Guided Plasma Cannon Assault Rifle > --- INVENTORY -------- Improved Ion Engine Light Treads Light Treads Improved Treads Improved Flight Unit Improved Flight Unit Medium Storage Unit Actuator Array Light Armor Plating Supersonic Drone Bay EM Pulse Gun Advanced Beam Cannon Assault Rifle Light Assault Rifle Heavy Assault Rifle Heavy Assault Rifle Mini Grenade Launcher Blade Trap Blade Trap Blade Trap Blade Trap Blade Trap [Rating: 21] Favorites ----------- Power Improved Ion Engine Engine Improved Ion Engine Propulsion Light Treads Treads Light Treads Wheel Compact Wheel Flight Unit Improved Flight Unit Utility Large Storage Unit Device Supersonic Drone Bay Storage Large Storage Unit Protection Light Armor Plating Weapon Light Cannon Energy Gun EM Pulse Gun Energy Cannon Guided Plasma Cannon Ballistic Gun Assault Rifle Ballistic Cannon Light Cannon Launcher Grenade Launcher Build | -11 -10 -10 -9 -9 -9 ------- Run | Scr Mat Min Mat Min Exi Slots Evolved 2 | . . . 2 . . Power . | . . . . . . Propulsion . | . . . . . . Utility 2 | . . . 2 . . Weapon . | . . . . . . Parts Attached 59 | 7 6 13 13 3 17 Power 7 | 1 1 1 3 . 1 Engine 7 | 1 1 1 3 . 1 Core . | . . . . . . Reactor . | . . . . . . Propulsion 12 | 2 . 4 2 . 4 Treads 9 | 2 . 2 2 . 3 Leg . | . . . . . . Wheel 2 | . . 2 . . . Hover . | . . . . . . Flight 1 | . . . . . 1 Utility 10 | 1 3 . 3 . 3 Device 1 | . . . . . 1 Storage 6 | 1 3 . 1 . 1 Processor . | . . . . . . Hackware . | . . . . . . Protection 3 | . . . 2 . 1 Artifact . | . . . . . . Weapon 30 | 3 2 8 5 3 9 Energy Gun 3 | 2 . . . . 1 Energy Cannon 4 | . . . 1 . 3 Ballistic Gun 9 | 1 . . 1 2 5 Ballistic Cannon 9 | . 2 5 2 . . Launcher 5 | . . 3 1 1 . Special Weapon . | . . . . . . Impact Weapon . | . . . . . . Slashing Weapon . | . . . . . . Piercing Weapon . | . . . . . . Special Melee Weapon . | . . . . . . Unidentified Prototypes 3 | . . . 1 . 2 Parts Lost 27 | . . 8 3 . 16 Power 4 | . . 2 . . 2 Propulsion 9 | . . 3 1 . 5 Utility 4 | . . . 1 . 3 Weapon 10 | . . 3 1 . 6 Highest Loss Streak 8 | . . 4 1 . 8 Average Slot Usage (%) 91 | . 92 87 95 99 86 Engine 10 | . 14 3 9 11 9 Treads 19 | . 28 9 8 22 18 Wheel 4 | . . 16 13 . . Storage 26 | . 21 28 33 33 27 Protection 4 | . . . 11 11 8 Ballistic Gun 7 | . . . 7 11 18 Ballistic Cannon 14 | . 26 21 11 . . Launcher 2 | . . 6 . 9 . Naked Turns 35 | . . . . . 35 Heaviest Build 86 | 11 41 43 55 54 86 Greatest Support 40 | 40 40 40 40 40 40 Greatest Overweight (x) 12 | . 1 12 3 1 3 Average Overweight (x) . | . . 1 1 1 . Largest Inventory Capacity 24 | 6 16 16 20 20 24 Average Capacity 15 | 5 10 16 19 20 19 Most Carried 22 | 2 13 16 20 20 22 Average Carried 13 | . 8 13 17 19 16 Final Capacity 20 | 6 16 16 20 20 4 Final Carried 20 | 2 13 16 20 20 3 Class Distribution -------------------- 58% | Mutant 38% | Hauler-Mutant Dominant Class ---------------- Mutant | -10/Materials Mutant | -10/Mines Hauler-Mutant | -9/Materials Hauler-Mutant | -9/Mines Hauler-Mutant | -9/Exiles Resources | -11 -10 -10 -9 -9 -9 ----------- Run | Scr Mat Min Mat Min Exi Matter Collected 1679 | 215 374 457 302 1 330 Remotely . | . . . . . . Salvage Created 953 | . 422 197 324 10 . Parts 61 | . 24 14 20 3 . Haulers Intercepted 2 | . 1 . 1 . . Recyclers Shooed . | . . . . . . Parts Field Recycled . | . . . . . . Retrieved Matter . | . . . . . . Parts Self-Destructed . | . . . . . . Prevented . | . . . . . . Kills | -11 -10 -10 -9 -9 -9 ------- Run | Scr Mat Min Mat Min Exi Combat Hostiles Destroyed 39 | . 7 20 9 3 . Guns 2 | . . . 2 . . Cannons 20 | . 7 8 5 . . AOE 17 | . . 12 2 3 . Classes Destroyed 11 | . 5 4 2 . . Worker 1 | . . 1 . . . Hauler 2 | . 1 . 1 . . Recycler 3 | . 2 1 . . . Operator 1 | . 1 . . . . Watcher 3 | . 3 . . . . Swarmer 8 | . . 3 2 3 . Grunt 13 | . 7 4 2 . . Duelist 1 | . . . 1 . . Sentry 4 | . . . 4 . . Demolisher 2 | . . 2 . . . Assembled 11 | . . 11 . . . Best Kill Streak 9 | . 2 9 4 3 . Combat Bots Only 9 | . 2 9 4 3 . Max Kills in Single Turn 2 | . 2 2 1 2 . Gunslinging . | . . . . . . Exploded 2 | . . 2 1 2 . Melee . | . . . . . . Uniques/NPCs Destroyed . | . . . . . . Combat | -11 -10 -10 -9 -9 -9 -------- Run | Scr Mat Min Mat Min Exi Damage Taken 3428 | . 354 906 351 57 1760 Core 547 | . 14 127 40 . 366 Absorbed by Shields . | . . . . . . Core Remaining (%) 71 | 100 . 43 . . . Volleys Fired 166 | . 33 36 30 4 63 Largest 2 | . 2 2 2 2 2 Hottest 120 | . 70 70 70 50 120 Shots Fired 263 | . 66 52 49 5 91 Gun 102 | . . . 18 1 83 Cannon 135 | . 66 34 27 . 8 Launcher 26 | . . 18 4 4 . Special . | . . . . . . Kinetic 203 | . 66 34 45 1 57 Thermal 8 | . . . . . 8 Explosive 26 | . . 18 4 4 . Electromagnetic 26 | . . . . . 26 Robot Hit Streak 23 | . 10 8 15 17 23 Robot Miss Streak 4 | . 2 4 2 . 3 Penetration Max . | . . . . . . Secondary Targets . | . . . . . . Shots Hit Robots 192 | . 47 33 33 2 77 Core Hits 96 | . 17 44 18 3 14 Critical Hits 4 | . 1 . 1 . 2 Critical Kills 1 | . . . 1 . . Critical Parts Destroyed 1 | . 1 . . . . Melee Attacks . | . . . . . . Impact . | . . . . . . Slashing . | . . . . . . Piercing . | . . . . . . Sneak Attacks . | . . . . . . Combat Hostiles . | . . . . . . Follow-up Attacks . | . . . . . . Damage Inflicted 4227 | . 857 1683 614 334 739 Guns 884 | . . . 163 . 721 Cannons 1633 | . 856 432 327 . 18 Explosions 1709 | . . 1251 124 334 . Melee . | . . . . . . Ramming 1 | . 1 . . . . Kinetic 2476 | . 856 432 490 . 698 Thermal 18 | . . . . . 18 Explosive 1709 | . . 1251 124 334 . Electromagnetic 23 | . . . . . 23 Impact . | . . . . . . Slashing . | . . . . . . Piercing . | . . . . . . Highest Corruption 6 | . 6 6 . . . Average Corruption 4 | . 3 6 . . . Corruption Purged . | . . . . . . Effects 27 | . 6 21 . . . Message Errors 5 | . 2 3 . . . Matter Fused 8 | . 1 7 . . . Heat Flow Errors 2 | . 1 1 . . . Energy Discharges 4 | . 1 3 . . . Data Loss (major) 1 | . . 1 . . . Misfires 1 | . . 1 . . . Targeting Errors 4 | . 1 3 . . . Weapon Failures 2 | . . 2 . . . Overload Shots . | . . . . . . Overflow Damage 81 | . 8 25 8 40 . Projectiles 21 | . 8 5 8 . . Explosions 60 | . . 20 . 40 . Melee . | . . . . . . Knockbacks 17 | . 13 4 . . . Impact . | . . . . . . Kinetic 17 | . 13 4 . . . Secondary . | . . . . . . Self-Inflicted Damage 16 | . . . . 16 . Shots 1 | . . . . 1 . Rammed 1 | . 1 . . . . Targets Rammed 1 | . 1 . . . . Kicked . | . . . . . . Crushed . | . . . . . . Highest Temperature 440 | . 166 218 20 . 440 Average Temperature 56 | . 33 36 7 . 164 Received Heat Transfer 402 | . 162 144 96 . . Effects 2 | . . . . . 2 Shutdowns 1 | . . . . . 1 Short Circuit 1 | . . . . . 1 Siege Activations . | . . . . . . Robots Corrupted . | . . . . . . Combat Hostiles . | . . . . . . Parts Fried . | . . . . . . Impact Corruptions . | . . . . . . Robots Melted . | . . . . . . Combat Hostiles . | . . . . . . Parts Melted . | . . . . . . Heat Transferred 109 | . . . . . 109 Parts Sabotaged . | . . . . . . Parts Stolen . | . . . . . . Parts Stripped . | . . . . . . Power Chain Reactions . | . . . . . . Missiles Intercepted . | . . . . . . Alert | -11 -10 -10 -9 -9 -9 ------- Run | Scr Mat Min Mat Min Exi Peak Influence 287 | . 205 149 287 148 . Initial 33 | . . 4 19 33 . Average 90 | . 45 96 181 144 . Maximum Alert Level 1 | . 1 . 1 . . Low Security (%) 90 | 100 96 100 52 100 . Level 1 9 | . 3 . 47 . . Level 2 . | . . . . . . Level 3 . | . . . . . . Level 4 . | . . . . . . Level 5 . | . . . . . . High Security . | . . . . . . Max Security . | . . . . . . Squads Dispatched 3 | . . 1 2 . . Investigation 1 | . . 1 . . . Extermination . | . . . . . . Reinforcement 2 | . . . 2 . . Assault . | . . . . . . Garrison . | . . . . . . Intercept . | . . . . . . Construction Impeded . | . . . . . . Haulers Reinforced . | . . . . . . Stealth | -11 -10 -10 -9 -9 -9 --------- Run | Scr Mat Min Mat Min Exi Distress Signals 1 | . 1 . . . . Communications Jammed . | . . . . . . Distress Signals . | . . . . . . Times Spotted 58 | . 15 19 16 5 3 Peak Tracking Total 9 | . 3 9 5 4 2 Tactical Retreats 3 | . 1 . . 2 . Traps | -11 -10 -10 -9 -9 -9 ------- Run | Scr Mat Min Mat Min Exi Traps Triggered 5 | . 5 . . . . Indirectly . | . . . . . . Trap Hack Attempts . | . . . . . . Triggered . | . . . . . . Disarmed . | . . . . . . Reprogrammed . | . . . . . . Reused 3 | . . . . . 3 Traps Extracted . | . . . . . . Installed 5 | . . . . . 5 Triggered . | . . . . . . Exploded 1 | . . . . . 1 Machines | -11 -10 -10 -9 -9 -9 ---------- Run | Scr Mat Min Mat Min Exi Machines Disabled . | . . . . . . Max in Single Turn . | . . . . . . Machines Sabotaged . | . . . . . . Garrisons Compromised . | . . . . . . Overloaded Fab Kills . | . . . . . . Fab Network Shutdowns . | . . . . . . Hacking | -11 -10 -10 -9 -9 -9 --------- Run | Scr Mat Min Mat Min Exi Machines Accessed 9 | . 4 1 2 . 2 Terminals 6 | . 4 . 2 . . Fabricators . | . . . . . . Repair Stations . | . . . . . . Recycling Units . | . . . . . . Scanalyzers . | . . . . . . Garrison Access . | . . . . . . Total Hacks 20 | . 11 1 6 . 2 Successful 12 | . 6 1 3 . 2 Failed 8 | . 5 . 3 . . Catastrophic . | . . . . . . Database Lockouts . | . . . . . . Manual 18 | . 11 . 6 . 1 Terminals 17 | . 11 . 6 . . Fabricators . | . . . . . . Repair Stations . | . . . . . . Recycling Units . | . . . . . . Scanalyzers . | . . . . . . Garrison Access . | . . . . . . Terminal Hacks 9 | . 4 1 2 . 2 Record 1 | . . . . . 1 Robot Analysis 2 | . 2 . . . . Open Door 1 | . . 1 . . . Zone Layout 4 | . 2 . 2 . . EX-Prototype ID Bank 1 | . . . . . 1 Fabricator Hacks . | . . . . . . Repair Station Hacks . | . . . . . . Recycling Unit Hacks . | . . . . . . Scanalyzer . | . . . . . . Garrison Access Hacks . | . . . . . . Unauthorized Hacks 3 | . 2 . 1 . . Terminals 3 | . 2 . 1 . . Track 2 | . 1 . 1 . . Operators 1 | . 1 . . . . Fabricators . | . . . . . . Repair Stations . | . . . . . . Recycling Units . | . . . . . . Scanalyzers . | . . . . . . Garrison Access . | . . . . . . Data Cores Recovered 1 | . 1 . . . . Used 1 | . 1 . . . . Hacking Detections 6 | . 4 . 2 . . Full Trace Events . | . . . . . . Feedback Events . | . . . . . . Feedback Blocked . | . . . . . . Robot Schematics Acquired . | . . . . . . Robots Built . | . . . . . . Matter . | . . . . . . Time . | . . . . . . Total Robot Build Rating . | . . . . . . Part Schematics Acquired . | . . . . . . Parts Built . | . . . . . . Matter . | . . . . . . Time . | . . . . . . Total Part Build Rating . | . . . . . . Parts Repaired . | . . . . . . Time . | . . . . . . Parts Recycled . | . . . . . . Recycled Matter . | . . . . . . Retrieved Matter . | . . . . . . Retrieved Components . | . . . . . . Parts Scanalyzed . | . . . . . . Part Schematics Acquired . | . . . . . . Parts Damaged . | . . . . . . Bothacking | -11 -10 -10 -9 -9 -9 ------------ Run | Scr Mat Min Mat Min Exi Used RIF Installer . | . . . . . . Robots Hacked . | . . . . . . Non-combat . | . . . . . . Combat . | . . . . . . Robot Hacks Applied . | . . . . . . Relay Couplers Released . | . . . . . . Robots Rewired . | . . . . . . Allies Hacked . | . . . . . . Hacks Repelled . | . . . . . . Allies | -11 -10 -10 -9 -9 -9 -------- Run | Scr Mat Min Mat Min Exi Total Allies . | . . . . . . Largest Group . | . . . . . . Highest-Rated Group . | . . . . . . Highest-Rated Ally . | . . . . . . Total Orders . | . . . . . . Ally Attacks . | . . . . . . Total Damage . | . . . . . . Kills . | . . . . . . Allies Corrupted . | . . . . . . Allies Melted . | . . . . . . Intel | -11 -10 -10 -9 -9 -9 ------- Run | Scr Mat Min Mat Min Exi Robot Analysis Total 2 | . 2 . . . . Derelict Logs Recovered 2 | . . 1 . 1 . Drone Launches . | . . . . . . Drone Recoveries . | . . . . . . Exploration | -11 -10 -10 -9 -9 -9 ------------- Run | Scr Mat Min Mat Min Exi Turns Passed 3515 | 81 1181 604 432 325 892 Spaces Moved 1857 | 45 610 409 226 165 402 Core 71 | 1 . 1 . . 69 Treads 1326 | 44 610 87 87 165 333 Legs . | . . . . . . Wheels 460 | . . 321 139 . . Hover . | . . . . . . Flight . | . . . . . . Fastest Speed 50 | 50 160 100 100 180 50 Average Speed 152 | 157 168 118 134 180 159 Slowest Speed 650 | 160 180 650 180 180 220 Overloaded Moves . | . . . . . . Propulsion Burnouts . | . . . . . . Robots Hopped . | . . . . . . Cave-ins Triggered . | . . . . . . Exploration Rate (%) 53 | 5 88 76 34 47 70 Regions Visited 5 Branch Regions 3 Pre-discovered Areas 2 | . . 1 . . 1 Known Exits Taken . | . . . . . . Unknown Exits Taken 5 | 1 1 1 1 1 . Scrap Searched 1 | . . 1 . . . Spaces Dug 12 | . . . . 12 . Terrain Destroyed 145 | . . 81 23 41 . Melee . | . . . . . . Projectile . | . . . . . . AOE 145 | . . 81 23 41 . Terrain Rammed . | . . . . . . Walls Destroyed . | . . . . . . Machines Disabled . | . . . . . . Actions | -11 -10 -10 -9 -9 -9 --------- Run | Scr Mat Min Mat Min Exi Total 2284 | 52 698 474 305 188 567 Wait 136 | . 32 5 22 15 62 Move 1852 | 44 609 408 225 164 402 Hop . | . . . . . . Pick Up 36 | 1 11 9 9 1 5 Fast Attach 17 | 6 3 3 3 . 2 Attach 22 | . 1 5 5 1 10 Detach 6 | . 2 1 2 . 1 Swap 20 | 1 2 5 5 2 5 Drop 23 | . 4 2 4 1 12 Fire 166 | . 33 36 30 4 63 Melee . | . . . . . . Ram . | . . . . . . Kick . | . . . . . . Crush 1 | . 1 . . . . Escape Stasis . | . . . . . . Rewire . | . . . . . . Trap 5 | . . . . . 5 Miscellaneous . | . . . . . . Route ------- -11/Scrapyard -10/Materials (discovered 5 exits: *Mat x3 / *Min x2) -10/Mines (discovered 2 exits: *Mat x2) -9/Materials -9/Mines -9/Exiles (discovered 2 exits: [*Min x2]) History --------- Turn | Location | Event 57 | -11/Scrapyard | Discovered new exit (range 15) 82 | -11/Scrapyard | Entered Materials 314 | -10/Materials | Discovered new exit (range 12) 322 | -10/Materials | Build established: Mutant 478 | -10/Materials | Discovered new exit (range 13) 597 | -10/Materials | Discovered new exit (range 7) 752 | -10/Materials | Discovered new exit (range 15) 1128 | -10/Materials | Discovered new exit (range 16) 1263 | -10/Materials | Entered Mines 1380 | -10/Mines | Assembled infested the area 1385 | -10/Mines | Assisted by a Guerilla fighting off Assembled 1437 | -10/Mines | Destroyed 9 combat bots 1449 | -10/Mines | Core integrity fell below 50% 1475 | -10/Mines | Lost 4 parts (1p1n2w) 1564 | -10/Mines | Met a Derelict shopkeep closing up shop 1607 | -10/Mines | Found a hidden stash of uninstalled traps 1842 | -10/Mines | Discovered new exit (range 7) 1857 | -10/Mines | Discovered new exit (range 10) 1867 | -10/Mines | Entered Materials 1867 | -9/Materials | Evolved 2 slots: Utility x2 1985 | -9/Materials | Discovered new exit (range 16) 2167 | -9/Materials | Build established: Hauler-Mutant 2299 | -9/Materials | Entered Mines 2465 | -9/Mines | Learned Materials interactive machine intel 2617 | -9/Mines | Deemed a non-threat by the Exiles lab entrance 2617 | -9/Mines | Discovered new exit (range 5) 2624 | -9/Mines | Entered Exiles 2648 | -9/Exiles | Discovered new exit (range 15) 2669 | -9/Exiles | Met 8R-AWN 2696 | -9/Exiles | Met EX-HEX 2786 | -9/Exiles | Met EX-DEC 2820 | -9/Exiles | Learned location of Zion (-6) 2941 | -9/Exiles | Met EX-BIN 2966 | -9/Exiles | Aligned with FarCom system 2968 | -9/Exiles | Given EX-Vault access code 3009 | -9/Exiles | Opened EX-Vault 3024 | -9/Exiles | Found Gui. Plasma Cannon 3028 | -9/Exiles | Found Supersonic Drone Bay 3067 | -9/Exiles | Warned to stay clear of 0b10 Research branches 3084 | -9/Exiles | Exiles lab attacked by MAIN.C 3194 | -9/Exiles | Discovered new exit (range 12) 3228 | -9/Exiles | Attacked by the Exiles 3334 | -9/Exiles | Lost 5 parts (1p1n2u1w) 3357 | -9/Exiles | Core integrity fell below 50% 3446 | -9/Exiles | Lost 8 parts (1p3n1u3w) 3463 | -9/Exiles | Core integrity fell below 20% 3514 | -9/Exiles | Found Prototype Ballistic Gun 3514 | -9/Exiles | Identified 8R-AWN's Boregun 3516 | -9/Exiles | Destroyed by H-55 Commando with Gauss Rifle Last Messages --------------- 03470_ HV Slug penetrates Wall. 03470_ HV Slug penetrates Machine. 03470_ Machine disabled. 03473_ Installed Blade Trap. 03474_ Acquired Blade Trap. 03478_ HV Slug penetrates Wall. 03478_ Penetrated by HV Slug. 03480_ Dropped Blade Trap. 03480_ Installed Blade Trap. 03482_ Acquired Adv. Beam Cannon. 03483_ 8R-AWN triggered Blade Trap. 03483_ Massive razor-sharp blades shoot up from within the floor. 03483_ Rnf. Fission Core severed. 03483_ Slug penetrates 8R-AWN. 03503_ 8R-AWN destroyed. 03512_ Acquired 26 matter. 03513_ Penetrated by Slug. 03514_ Acquired Prototype Ballistic Gun. 03514_ Identified 8R-AWN's Boregun. 03516_ Penetrated by Slug. Map ----- +----------------------------------------------------+ | ????????????????????????????????????????????????? | | ????????????????????????????????????????????????? | | ????????????????????????????????????????????????? | | ????????????????????????????????????????????????? | | ????????????????????? ??????????????????????????? | | ????????????????????? ??????????????????????????? | | ????????????????????? ??????????????????????????? | | ????????????????????? #?????????????????????????? | | ?????????????###????? #?????????????????????????? | | ?????????????# ????? #?????????????????????????? | | ?????????????? #???? #?????????????????????????? | | ??????????????? ???# #?????????????????????????? | | ???????????????# #??# #?????????????????????????? | | ?????????????### ### #?????????????????????????? | | ?????????????? """"" #?????????????????????????? | | ?????????????###" #"#?????????????????????????? | | ?????????????# # "#?????????????????????????? | | ??????????#???#" < "#?????????????????????????? | | ??????????# #??# ==##????????????????????????? | | ??????????# ## ]!! #????????????????????????? | | ????????????# " ##????????????????????????? | | ????????????###;; #?????????????????????????? | | ????????????# ### ^##????????????????????????? | | ????????????# ;; ] #????????????#######?????? | | ????????????### ; =!#######??????#!!! "#?????? | | ??????????????#### !!%@!# "##?????# "#?????? | | ?????????????????## !!= #?????# "#?????? | | ??????????????????## ! ##???## ""#?????? | | ??????????????????#"" #####" "#?????? | | ??????????????????#### ^ ##" ""#?????? | | ?????????????????????## * #"" #???????? | | ??????????????????????#"## p #???????? | | ??????????????????????####### ##??????? | | ????????????????????????????### h "#??????? | | ??????????????????????########" ###????? | | ??????????????????##### !!""""" ##???? | | ??????????????????# "! "###"" ##### | | ??????????????????#####! "#?##" """ | | ??????????????????????#! ##??#" | | ??????????????????????# !"" """###???#"# | | ??????????????????????##########?????#### | | ????????????????????????????????????????### | | ??????????????????????????????????????????### | | ????????????????????????????????????????????## | | ?????????????????????????????????????????????## | | ??????????????????????????????????????????????##" | | ???????????????????????????????????????????????#" | | ??????????????????????????????????????????????##" | | ??????????????????????????????????????????????#"" | | ??????????????????????????????????????????????#"" | +----------------------------------------------------+ Best States ------------- Heat Dissipation 28 Energy Generation 12 Energy Capacity 265 Matter Stores 300 Matter Capacity 300 Sight Range 16 Terrain Scan Density 10 Armor Coverage 300 Evasion (%) 50 Recoil Reduction 2 Item Schematics ----------------- None Robot Schematics ------------------ None Fabricated ------------ Nothing Alien Tech Used ----------------- None Achievements -------------- None Challenges ------------ None Game ------ Seed ColdInsulatedCorpse Manual? 0 Play Time 00:22:58 Cumulative 187.2 hours Start 2021.06.06 @ 19:52:57 End 2021.06.06 @ 20:12:58 Sessions 1 Manual Loads 0 Difficulty Rogue Special Mode None Game No. 235 Rogue 148 Adventurer 87 Explorer 0 Win Type - Total 4 Types 3/0/0/1/0/0/0/0/0 Lore% 67 Gallery% 74 Achievement% 61 Wizard Run 0 Options --------- ASCII 0 Keyboard 1 Movement Numpad Keybinds 0 Fullscreen 1 Font 18/Smallcaps Map View 76x50 Tactical HUD 1 Map Filters NONE Filters NONE Steam 1 RUN: 581011ca-fafa-4511-8b9b-22e488557e06